Cogmind - Beta 16 --- EXPLORER MODE // 2025.12.29 @ 09:34:16 Player: K.K.Y. Result: Destroyed by Autobeam Turret with Autobeam Performance ------------- Evolutions (0) 0 Regions Visited (3) 600 Robots Destroyed (41) 205 Value Destroyed (930) 930 Prototype IDs (12) 240 Alien Tech Used (0) 0 Bonus (0) 0 TOTAL SCORE: 1975 Bonus ------- None Cogmind --------- Core Integrity 0/250 Matter 253/450 Energy 159/160 System Corruption 2% Temperature Cool (12) Movement Core (500) Ox9 Location -10/Subcaves Parts ------- > --- POWER (1) -------- Light Nuclear Core > --- PROPULSION (2) --- (None) > --- UTILITY (3) ------ Large Storage Unit Compact Matter Pod > --- WEAPON (2) ------- Rocket Launcher > --- INVENTORY (15) --- Heat Sink Compact Matter Pod (150) Compact Matter Pod (150) Compact Matter Pod (150) Compact Matter Pod (150) Light Armor Plating Recalibrator Rainbow Chip Mining Laser Multitool Peak State ------------ > --- POWER ------------ Makeshift Power Source > --- PROPULSION ------- Light Treads Light Treads > --- UTILITY ---------- Large Storage Unit Structural Scanner Sensor Array > --- WEAPON ----------- Beam Cannon Barrage Gun > --- INVENTORY -------- Light Nuclear Core Heat Sink Compact Matter Pod Compact Matter Pod Compact Matter Pod Compact Matter Pod Compact Matter Pod Light Armor Plating Recalibrator Rainbow Chip Riot Gun Beam Cannon Rocket Launcher Mining Laser Multitool [Rating: 17] Favorites ----------- Power Ion Engine Engine Ion Engine Power Core Light Nuclear Core Propulsion Light Treads Treads Light Treads Utility Sensor Array Device Sensor Array Storage Large Storage Unit Processor Signal Interpreter Weapon Beam Cannon Energy Gun Medium Laser Energy Cannon Beam Cannon Ballistic Gun Barrage Gun Launcher Rocket Launcher Special Weapon Mining Laser Build | -11 -10 -10 -10 ------- Run | Yrd Mat Min Sub Slots Evolved 1 | . 1 . . Power . | . . . . Propulsion . | . . . . Utility 1 | . 1 . . Weapon . | . . . . Parts Attached 22 | 7 7 1 7 Power 4 | 1 1 . 2 Engine 3 | 1 1 . 1 Core 1 | . . . 1 Reactor . | . . . . Propulsion 4 | 2 1 1 . Treads 4 | 2 1 1 . Leg . | . . . . Wheel . | . . . . Hover . | . . . . Flight . | . . . . Utility 6 | 3 2 . 1 Device 2 | 1 1 . . Storage 3 | 1 1 . 1 Processor 1 | 1 . . . Hackware . | . . . . Protection . | . . . . Artifact . | . . . . Weapon 8 | 1 3 . 4 Energy Gun 2 | 1 . . 1 Energy Cannon 3 | . 3 . . Ballistic Gun 1 | . . . 1 Ballistic Cannon . | . . . . Launcher 1 | . . . 1 Special Weapon 1 | . . . 1 Impact Weapon . | . . . . Slashing Weapon . | . . . . Piercing Weapon . | . . . . Special Melee Weapon . | . . . . Unidentified Prototypes . | . . . . Parts Lost 9 | . . . 9 Power 1 | . . . 1 Propulsion 2 | . . . 2 Utility 2 | . . . 2 Weapon 4 | . . . 4 Highest Loss Streak 8 | . . . 8 To Critical Strikes 1 | . . . 1 Average Backups 8 | 3 4 6 13 Power . | . . . . Propulsion . | . . . . Utility 5 | 2 3 5 8 Weapon 1 | . 1 1 3 Tool/Special . | . . . . Unused Backups 10 | . . . 10 Power . | . . . . Propulsion . | . . . . Utility 9 | . . . 9 Weapon . | . . . . Tool/Special 1 | . . . 1 Average Slot Usage (%) 91 | . 86 100 87 Engine 10 | . 12 12 9 Treads 22 | . 24 25 18 Device 19 | . 12 25 19 Storage 9 | . 1 12 14 Processor 3 | . 11 . . Energy Gun 1 | . 6 . . Energy Cannon 17 | . 16 25 10 Ballistic Gun 2 | . . . 7 Peak Build Rating 17 | 6 8 10 17 Average Rating 9 | 4 6 8 12 On Entrance 6 | . 6 8 10 Avg Prop Armor Cover (%) . | . . . . Naked Turns . | . . . . Heaviest Build 33 | 6 33 33 33 Greatest Support 40 | 40 40 40 40 Greatest Overweight (x) 10 | . 1 . 10 Average Overweight (x) . | . . . . Largest Inventory Capacity 15 | 10 15 15 15 Average Capacity 12 | 5 6 15 15 Most Carried 15 | 5 5 12 15 Average Carried 8 | 3 4 6 13 Final Capacity 15 | 5 15 15 15 Final Carried 12 | 4 4 12 10 Class Distribution -------------------- 100% | Hacker-Mutant Dominant Class ---------------- Hacker-Mutant | -10/Materials Hacker-Mutant | -10/Mines Hacker-Mutant | -10/Subcaves Resources | -11 -10 -10 -10 ----------- Run | Yrd Mat Min Sub Matter Collected 653 | 270 137 24 222 Remotely . | . . . . Salvage Created 1420 | 201 545 111 563 Parts 95 | 14 30 7 44 Haulers Intercepted 2 | . 2 . . Recyclers Shooed 1 | 1 . . . Parts Field Recycled . | . . . . Retrieved Matter . | . . . . Parts Self-Destructed . | . . . . Prevented . | . . . . Parts Restored . | . . . . Kills | -11 -10 -10 -10 ------- Run | Yrd Mat Min Sub Combat Hostiles Destroyed 25 | . 7 4 14 Guns 8 | . 4 . 4 Cannons 12 | . 3 4 5 AOE 5 | . . . 5 Classes Destroyed 10 | 2 6 . 2 Builder 2 | . 2 . . Tunneler 5 | 5 . . . Hauler 2 | . 2 . . Recycler 3 | 1 2 . . Mechanic 1 | . 1 . . Watcher 3 | . 3 . . Swarmer 7 | . 5 2 . Grunt 4 | . 2 2 . Artisan 1 | . . . 1 Subdweller 14 | . . . 14 Best Kill Streak 4 | 4 4 2 4 Combat Bots Only 4 | . 4 2 4 Max Kills in Single Turn 2 | 1 1 1 2 Gunslinging . | . . . . Exploded 2 | . . . 2 Melee . | . . . . Uniques/NPCs Destroyed . | . . . . Combat | -11 -10 -10 -10 -------- Run | Yrd Mat Min Sub Hostile Shots Fired 149 | . 29 6 114 Missed 40 | . 9 1 30 Hits 109 | . 20 5 84 Projectile 109 | . 20 5 84 AOE 2 | . . . 2 Critical Strikes 2 | . . . 2 Damage Taken 1231 | . 116 30 1085 Core 251 | . 33 . 218 Absorbed by Shields . | . . . . Ignored by Resistances 749 | . 78 19 652 Core Remaining (%) 100 | 100 . . . Volleys Fired 136 | 15 33 5 83 Largest 2 | 1 2 2 2 Hottest 120 | 50 120 120 120 Shots Fired 230 | 15 51 10 154 Gun 109 | 15 23 . 71 Cannon 113 | . 28 10 75 Launcher 6 | . . . 6 Special 2 | . . . 2 Kinetic 68 | . . . 68 Thermal 153 | 15 51 10 77 Explosive 6 | . . . 6 Electromagnetic 3 | . . . 3 Robot Hit Streak 36 | 15 10 14 36 Robot Miss Streak 1 | . 1 . 1 Penetration Max . | . . . . Secondary Targets . | . . . . Shots Hit Robots 144 | 15 38 7 84 Core Hits 62 | 7 21 4 30 Critical Kills . | . . . . Critical Parts Destroyed . | . . . . Critical Strikes 7 | 4 3 . . Burn 7 | 4 3 . . Melee Attacks . | . . . . Impact . | . . . . Slashing . | . . . . Piercing . | . . . . Sneak Attacks . | . . . . Combat Hostiles . | . . . . Follow-up Attacks . | . . . . Damage Inflicted 2678 | 192 577 142 1767 Guns 1088 | 192 225 . 671 Cannons 1147 | . 352 142 653 Explosions 443 | . . . 443 Melee . | . . . . Ramming . | . . . . Kinetic 611 | . . . 611 Thermal 1564 | 192 577 142 653 Explosive 443 | . . . 443 Electromagnetic 60 | . . . 60 Impact . | . . . . Slashing . | . . . . Piercing . | . . . . Highest Corruption 2 | . 2 2 2 Average Corruption 1 | . 1 2 2 Corruption Purged . | . . . . Corruption Blocked . | . . . . Effects 46 | . 8 19 19 Message Errors 14 | . 1 8 5 Matter Fused 10 | . 3 2 5 Heat Flow Errors 8 | . 2 3 3 Energy Discharges 5 | . 1 2 2 Data Loss (minor) 7 | . 1 2 4 Data Loss (major) 1 | . . 1 . Alerts 1 | . . 1 . Overload Shots . | . . . . Overflow Damage 17 | . 16 . 1 Projectiles 16 | . 16 . . Explosions 1 | . . . 1 Melee . | . . . . Knockbacks . | . . . . Impact . | . . . . Kinetic . | . . . . Secondary . | . . . . Self-Inflicted Damage . | . . . . Shots . | . . . . Rammed 1 | . . . 1 Targets Rammed 1 | . . . 1 Kicked . | . . . . Crushed . | . . . . Highest Temperature 262 | 50 180 262 210 Average Temperature 44 | 19 51 92 19 Received Heat Transfer 573 | . 54 9 510 Siege Activations . | . . . . Martial Activations . | . . . . Shielding Activations . | . . . . Robots Disrupted . | . . . . Combat Hostiles . | . . . . Robots Corrupted . | . . . . Combat Hostiles . | . . . . Parts Fried . | . . . . Impact Corruptions . | . . . . Robots Melted . | . . . . Combat Hostiles . | . . . . Parts Melted 11 | 2 5 1 3 Heat Transferred 4144 | 851 1628 296 1369 Parts Sabotaged . | . . . . Parts Stolen . | . . . . Parts Stripped . | . . . . Power Chain Reactions . | . . . . Alert | -11 -10 -10 -10 ------- Run | Yrd Mat Min Sub Maximum Alert Level . | . . . . Low Security (%) 100 | 100 100 100 . Level 1 . | . . . . Level 2 . | . . . . Level 3 . | . . . . Level 4 . | . . . . Level 5 . | . . . . High Security . | . . . . Max Security . | . . . . Peak Influence 70 | 10 70 55 . Initial . | . . . . Average 4 | 1 6 2 . Influence Increases 366 | 30 231 105 . Destroy 0b10 Robot/C 220 | . 140 80 . Destroy 0b10 Robot/NC 80 | 30 50 . . Destroy Leader 60 | . 40 20 . Allied During Kill 1 | . . 1 . Disable Machine 4 | . . 4 . Destroy Structure 1 | . 1 . . Influence Decreases 366 | 30 231 105 . Time Decay 366 | 30 231 105 . Squads Dispatched . | . . . . Investigation . | . . . . Extermination . | . . . . Reinforcement . | . . . . Assault . | . . . . Garrison . | . . . . Intercept . | . . . . Searches Triggered . | . . . . Construction Impeded . | . . . . Haulers Reinforced . | . . . . Active Scanning Responses . | . . . . Cargo Convoy Interrupts . | . . . . Stealth | -11 -10 -10 -10 --------- Run | Yrd Mat Min Sub Distress Signals 2 | . 2 . . Communications Jammed . | . . . . Distress Signals . | . . . . Times Spotted 35 | . 13 4 18 Peak Tracking Total 4 | . 4 2 4 Tactical Retreats . | . . . . Traps | -11 -10 -10 -10 ------- Run | Yrd Mat Min Sub Traps Triggered 6 | . 6 . . Indirectly . | . . . . Trap Hack Attempts . | . . . . Triggered . | . . . . Disarmed . | . . . . Reprogrammed . | . . . . Reused . | . . . . Traps Extracted . | . . . . Installed . | . . . . Triggered . | . . . . Machines | -11 -10 -10 -10 ---------- Run | Yrd Mat Min Sub Machines Disabled 2 | . . 1 1 Max in Single Turn 1 | . . . 1 Machines Repaired . | . . . . Machines Dismantled . | . . . . Machines Sabotaged . | . . . . Overloaded Fab Kills . | . . . . Hacking | -11 -10 -10 -10 --------- Run | Yrd Mat Min Sub Machines Accessed 1 | . . . 1 Terminals . | . . . . Fabricators . | . . . . Repair Stations . | . . . . Recycling Units . | . . . . Scanalyzers . | . . . . Garrison Access . | . . . . Total Hacks 1 | . . . 1 Successful 1 | . . . 1 Failed . | . . . . Catastrophic . | . . . . Database Lockouts . | . . . . Manual . | . . . . Terminals . | . . . . Fabricators . | . . . . Repair Stations . | . . . . Recycling Units . | . . . . Scanalyzers . | . . . . Garrison Access . | . . . . Terminal Hacks 1 | . . . 1 Proto ID Catalog 1 | . . . 1 Fabricator Hacks . | . . . . Repair Station Hacks . | . . . . Recycling Unit Hacks . | . . . . Scanalyzer . | . . . . Garrison Access Hacks . | . . . . Unauthorized Hacks . | . . . . Terminals . | . . . . Fabricators . | . . . . Repair Stations . | . . . . Recycling Units . | . . . . Scanalyzers . | . . . . Garrison Access . | . . . . Data Cores Recovered . | . . . . Used . | . . . . Hacking Detections . | . . . . Full Trace Events . | . . . . Feedback Events . | . . . . Feedback Blocked . | . . . . Robot Schematics Acquired . | . . . . Robots Built . | . . . . Authchips . | . . . . Time . | . . . . Total Robot Build Rating . | . . . . Part Schematics Acquired . | . . . . Parts Built . | . . . . Authchips . | . . . . Time . | . . . . Total Part Build Rating . | . . . . Part Studies Acquired . | . . . . Parts Repaired . | . . . . Time . | . . . . Parts Recycled . | . . . . Recycled Matter . | . . . . Retrieved Matter . | . . . . Retrieved Components . | . . . . Parts Scanalyzed . | . . . . Part Schematics Acquired . | . . . . Parts Damaged . | . . . . Bothacking | -11 -10 -10 -10 ------------ Run | Yrd Mat Min Sub Used RIF Installer . | . . . . Robots Hacked . | . . . . Non-combat . | . . . . Combat . | . . . . Robot Hacks Applied . | . . . . Relay Couplers Released . | . . . . Fabnet Peak Effective % . | . . . . Robots Rewired . | . . . . Allies Hacked . | . . . . Hacks Repelled . | . . . . Allies | -11 -10 -10 -10 -------- Run | Yrd Mat Min Sub Total Allies 2 | . . 2 . Largest Group 2 | . . 2 1 Highest-Rated Group 39 | . . 39 12 Highest-Rated Ally 31 | . . 31 12 Total Orders . | . . . . Ally Attacks 9 | . . 5 4 Total Damage 116 | . . 64 52 Kills . | . . . . Allies Corrupted . | . . . . Allies Melted . | . . . . Intel | -11 -10 -10 -10 ------- Run | Yrd Mat Min Sub Active Infowar (turns) 3621 | 95 1142 1245 1139 Sensors 3621 | 95 1142 1245 1139 Structural 2375 | . 82 1245 1048 Robot Analysis Total . | . . . . Derelict Logs Recovered 2 | . . . 2 Drone Launches . | . . . . Drone Recoveries . | . . . . Exploration | -11 -10 -10 -10 ------------- Run | Yrd Mat Min Sub Turns Passed 3915 | 122 1142 1245 1406 Spaces Moved 2043 | 60 646 751 586 Core 81 | 18 4 . 59 Treads 1962 | 42 642 751 527 Legs . | . . . . Wheels . | . . . . Hover . | . . . . Flight . | . . . . Fastest Speed 50 | 50 50 160 160 Average Speed 168 | 127 159 160 194 Slowest Speed 550 | 160 160 160 550 Overloaded Moves . | . . . . Propulsion Burnouts . | . . . . Robots Hopped . | . . . . Potential Cave-ins . | . . . . Cave-ins Triggered . | . . . . Exploration Rate (%) 61 | 4 95 99 47 Regions Visited 3 Branch Regions 2 Pre-discovered Areas 2 | . . . 2 Known Exits Taken 3 | 1 1 1 . Unknown Exits Taken . | . . . . Scrap Searched 6 | . . . 6 Spaces Dug 1 | . . . 1 Terrain Destroyed 38 | . . . 38 Melee . | . . . . Projectile 2 | . . . 2 AOE 36 | . . . 36 Terrain Rammed . | . . . . Walls Destroyed . | . . . . Machines Disabled . | . . . . Actions | -11 -10 -10 -10 --------- Run | Yrd Mat Min Sub Total 2284 | 89 708 785 702 Wait 45 | . 9 19 17 Move 2040 | 59 645 750 586 Hop . | . . . . Pick Up 25 | 7 5 9 4 Fast Attach 7 | 4 3 . . Attach 12 | 3 4 . 5 Detach 1 | . 1 . . Swap 9 | . 4 1 4 Drop 8 | 1 4 1 2 Fire 136 | 15 33 5 83 Melee . | . . . . Ram . | . . . . Kick . | . . . . Crush 1 | . . . 1 Escape Stasis . | . . . . Rewire . | . . . . Trap . | . . . . Miscellaneous . | . . . . Route ------- -11/Scrapyard -10/Materials (discovered 6 exits: *Mat x3 / *Min x2 / Sub) -10/Mines (discovered 3 exits: *Mat x2 / *Sub) -10/Subcaves (discovered 1 exit: *Rec) History --------- Turn | Location | Event 13 | -11/Scrapyard | Identified exit to Materials 13 | -11/Scrapyard | Discovered exit to Materials (range 13) 123 | -11/Scrapyard | Entered Materials 123 | -10/Materials | Evolved 1 slot: Utility x1 306 | -10/Materials | Build established: Hacker-Mutant 314 | -10/Materials | Identified exit to Materials 314 | -10/Materials | Discovered exit to Materials (range 16) 488 | -10/Materials | Identified exit to Mines 488 | -10/Materials | Discovered exit to Mines (range 13) 611 | -10/Materials | Discovered exit to Materials (range 15) 695 | -10/Materials | Discovered exit to Mines (range 8) 914 | -10/Materials | Discovered exit to Materials (range 8) 1184 | -10/Materials | Identified exit to Subcaves 1184 | -10/Materials | Discovered exit to Subcaves (range 6) 1265 | -10/Materials | Entered Mines 1356 | -10/Mines | Discovered exit to Materials (range 13) 1617 | -10/Mines | Discovered exit to Materials (range 12) 1707 | -10/Mines | Received a Rocket Launcher from a helpful Derelict 2020 | -10/Mines | Discovered exit to Subcaves (range 7) 2510 | -10/Mines | Entered Subcaves 2510 | -10/Subcaves | Accompanied by 1 ally 2511 | -10/Subcaves | Approached by a straggling Scientist 2518 | -10/Subcaves | Learned location of Zion (-6) 2518 | -10/Subcaves | Met a Zionite searching for "candidates" 2957 | -10/Subcaves | Learned 2 Materials zone layouts 3037 | -10/Subcaves | Shifting Twisted Machinery released Mak. Kinetic Plating 3040 | -10/Subcaves | Shifting Twisted Machinery released Piercing Trap 3133 | -10/Subcaves | Visited 4L-MR0's lab 3153 | -10/Subcaves | Found Rainbow Chip 3546 | -10/Subcaves | Ambushed by Subdweller buried in earth 3546 | -10/Subcaves | Ambushed by Subdweller buried in earth 3561 | -10/Subcaves | Core integrity fell below 50% 3594 | -10/Subcaves | Core integrity fell below 20% 3634 | -10/Subcaves | Lost 8 parts (1p2n1u4w) 3916 | -10/Subcaves | Identified exit to Recycling 3916 | -10/Subcaves | Discovered exit to Recycling (range 15) 3916 | -10/Subcaves | Destroyed by Autobeam Turret with Autobeam Last Messages --------------- 03659_ 5E-YI6(R) destroyed. 03661_ Subatomizers dissect the Sub. Monowheel. 03664_ The unstable cave ceiling collapses. 03676_ Subatomizers dissect the Sub. Monowheel. 03707_ System corrupted: Heat flow error (+248). 03707_ The unstable cave ceiling collapses. 03715_ Subatomizers dissect the Sub. Monowheel. 03726_ The unstable cave ceiling collapses. 03729_ Subatomizers dissect the Sub. Monowheel. 03740_ Subatomizers dissect the Sub. Monowheel, destroying it. 03743_ JDW|DLVQB5IA9U40 B0KL 5 :5/SB GR&G5 03746_ Acquired 30 matter. 03763_ System corrupted: Heat flow error (+107). 03792_ The unstable cave ceiling collapses. 03846_ System corrupted: Matter fused (-6). 03861_ Acquired 8 matter. 03862_ &SLKHA69:0 UZEAILMFL V 03916_ EXIT=FOUND: RECYCLING Map ----- +----------------------------------------------------+ | # # #?????????????????????????????????????? | | ## #????????????????????????????????????? | | # # #????????????????????????????????????? | | ## #### ??????????????????????????????????????? | | # ## ??????????????????????????????????????? | | #??????????????????????????????????????????? | | # ##??????????????????????????????????????????? | | #####??????????????????????????????????????????? | | ## ##????????????????????????????????????? | | ?????????????????????????????????? | | # ^ ???????????#?????????????????????? | | #? ???###??????>#????????????????????? | | #?? ^ ??? ??????? """"?????????????????? | | #???##% ??? ??????? " "?????????????????? | | ###????? ??? ??????t t "?????????????????? | | #??????????? #?????? ????? ????????????? | | #??????????? #?????? ???? ???????????? | | =& #??????????? #?????? ???? ???????????? | | !%! ##?#####???? ##?????%= #??? % ??????????? | | *&[ #?#% #????^ ????#? #?? ??????????? | | #?# ##### ????? #% ## ??????????? | | #??# # # ##????? % % ?????????? | | ##?## #????? ??????????? | | ## #### # ###???#!%* #?????????????? | | ?# ## "### # #####%&! #?????????????? | | ## ##?# "" *@%% ????????? | | # ##??## #"" " " & ????????? | | ##???#""" #""""## ????????? | | ## ## ##????## "" ######??# ## ##?????????? | | ?########??????## """ #???????? ??? ##??????????? | | ????????????????# """ "????????? ??????????????? | | ????????????????# """ "???????? #????????????? | | ???????????????# """ "#?????????#????????????? | | ???????????????#####"" " #?????????????????????? | | ???????????????????#" "" "" ????????????????????? | | ????????????????????" ????###????????????????????? | | ?????????????????????????????????????????????????? | | ?????????????????????????????????????????????????? | | ?????????????????????????????????????????????????? | | ?????????????????????????????????????????????????? | | ?????????????????????????????????????????????????? | | ?????????????????????????????????????????????????? | | ?????????????????????????????????????????????????? | | ?????????????????????????????????????????????????? | | ?????????????????????????????????????????????????? | | ?????????????????????????????????????????????????? | | ?????????????????????????????????????????????????? | | ?????????????????????????????????????????????????? | | ?????????????????????????????????????????????????? | | ?????????????????????????????????????????????????? | +----------------------------------------------------+ Best States ------------- Heat Dissipation 25 Energy Generation 15 Energy Capacity 250 Matter Stores 300 Matter Capacity 450 Sight Range 16 Robot Scan Range 14 Terrain Scan Density 10 Resistance: KI 35 Resistance: TH 35 Resistance: EX 35 Resistance: EM 35 Resistance: I 35 Resistance: S 35 Resistance: P 35 Evasion (%) 50 Recoil Reduction 2 Offensive Hacking 20 Item Schematics ----------------- None Robot Schematics ------------------ None Fabricated ------------ Nothing Repaired ---------- Nothing Studied --------- None Alien Tech Used ----------------- None Achievements -------------- None Challenges ------------ None Game ------ Seed GreatPhasingCharge Manual? 0 Play Time 00:15:09 Cumulative 230.6 hours Start 2025.12.29 @ 09:20:37 End 2025.12.29 @ 09:34:16 Sessions 1 Manual Loads 0 Difficulty Explorer Special Mode None Game No. 360 Rogue 0 Adventurer 0 Explorer 360 Win Type - Total 0 Types 0/0/0/0/0/0/0/0/0/0 Lore% 71 Gallery% 68 Achievement% 54 Wizard Run 0 Options --------- Layout 1 ASCII 0 Keyboard 0 Movement Mouse Keybinds 0 Fullscreen 1 Font 24/Smallcaps Map View 50x35 Zoom Use 0% Tactical HUD 1 Map Filters NONE Filters NONE Steam 1 RUN: 0a33ebd5-2fa3-43bc-9940-5feb0b59e490